fUSD/lending_fUSD_20260613
["ID","MTS","AMOUNT","RATE_DAILY","PERIOD"]
[424971548,1781362251000,-293.59716183,0.000299,2]
[424971547,1781362251000,-150.0,0.00029863,2]
[424971550,1781362251000,-151.0,0.000299,2]
[424971552,1781362251000,-2209.0,0.000299,2]
[424971554,1781362251000,-193.40893776,0.000299,2]
[424971557,1781362251000,-500.0,0.000299,10]
[424971556,1781362251000,-240.02461992,0.000299,2]
[424971555,1781362251000,-266.69402212,0.000299,2]
[424971565,1781362251000,-5594.29193222,0.000299,2]
[424971558,1781362251000,-6384.30710499,0.000299,2]
[424971560,1781362251000,-5594.29193228,0.000299,2]
[424971559,1781362251000,-399.58529486,0.000299,2]
[424971562,1781362251000,-5594.29193222,0.000299,2]
[424971563,1781362251000,-5594.29193222,0.000299,2]
[424971564,1781362251000,-5594.29193222,0.000299,2]
[424971561,1781362251000,-5594.29193222,0.000299,2]
[424971566,1781362251000,-5594.29193222,0.000299,2]
[424971577,1781362251000,-5594.29193222,0.000299,2]
[424971595,1781362251000,-621.18705331,0.00029999,7]
[424971659,1781362251000,-22499.99,0.0003,2]
[424971600,1781362251000,-479.12806722,0.00029999,7]
[424971635,1781362251000,-172.6,0.0003,7]
[424971632,1781362251000,-2499.99,0.0003,2]
[424971633,1781362251000,-22499.99,0.0003,2]
[424971636,1781362251000,-14302.25,0.0003,2]
[424971639,1781362251000,-200.0,0.0003,11]
[424971597,1781362251000,-529.55409768,0.00029999,2]
[424971642,1781362251000,-2499.99,0.0003,2]
[424971640,1781362251000,-200.0,0.0003,11]
[424971641,1781362251000,-200.0,0.0003,11]
[424971651,1781362251000,-24999.99,0.0003,2]
[424971643,1781362251000,-25000.0,0.0003,2]
[424971644,1781362251000,-2500.0,0.0003,2]
[424971645,1781362251000,-383.79,0.0003,7]
[424971650,1781362251000,-25000.0,0.0003,2]
[424971647,1781362251000,-22500.0,0.0003,2]
[424971648,1781362251000,-2500.0,0.0003,2]
[424971646,1781362251000,-2499.99,0.0003,2]
[424971649,1781362251000,-22500.0,0.0003,2]
[424971652,1781362251000,-9999.99,0.0003,2]
[424971654,1781362251000,-25000.0,0.0003,2]
[424971661,1781362251000,-22499.99,0.0003,2]
[424971653,1781362251000,-22499.99,0.0003,2]
[424971656,1781362251000,-24999.99,0.0003,2]
[424971660,1781362251000,-690.76701398,0.0003,2]
[424971655,1781362251000,-200.0,0.0003,2]
[424971658,1781362251000,-2499.99,0.0003,2]
[424971657,1781362251000,-2499.99,0.0003,2]
[424971638,1781362251000,-200.0,0.0003,11]
[424971634,1781362251000,-247.0,0.0003,7]
[424971637,1781362251000,-7999.62,0.0003,2]
[424971629,1781362251000,-22499.99,0.0003,2]
[424971601,1781362251000,-809.53824616,0.00029999,7]
[424971603,1781362251000,-707.26782102,0.00029999,7]
[424971609,1781362251000,-750.23955435,0.00029999,7]
[424971606,1781362251000,-320.13445775,0.00029999,7]
[424971614,1781362251000,-696.71559703,0.00029999,7]
[424971631,1781362251000,-22500.0,0.0003,2]
[424971604,1781362251000,-613.49085424,0.00029999,7]
[424971613,1781362251000,-672.16952825,0.00029999,7]
[424971612,1781362251000,-518.52119128,0.00029999,7]
[424971615,1781362251000,-644.14997824,0.00029999,7]
[424971607,1781362251000,-834.85098402,0.00029999,7]
[424971611,1781362251000,-447.64245333,0.00029999,7]
[424971608,1781362251000,-695.31146475,0.00029999,7]
[424971610,1781362251000,-464.81501092,0.00029999,7]
[424971605,1781362251000,-453.11619977,0.00029999,7]
[424971625,1781362251000,-650.0,0.0003,2]
[424971616,1781362251000,-5925.30396399,0.0003,7]
[424971630,1781362251000,-2500.0,0.0003,2]
[424971628,1781362251000,-2499.99,0.0003,2]
[424971622,1781362251000,-1030.0293719,0.0003,120]
[424971623,1781362251000,-1192.47684,0.0003,120]
[424971621,1781362251000,-5872.37365179,0.0003,7]
[424971624,1781362251000,-1000.0,0.0003,2]
[424971617,1781362251000,-5925.30396399,0.0003,7]
[424971618,1781362251000,-200.0,0.0003,11]
[424971619,1781362251000,-210.58,0.0003,11]
[424971626,1781362251000,-2499.99,0.0003,2]
[424971627,1781362251000,-3962.2,0.0003,2]
[424971620,1781362251000,-5872.37365179,0.0003,7]
[424971671,1781362252000,-25000.0,0.0003,2]
[424971674,1781362252000,-25000.0,0.0003,2]
[424971668,1781362252000,-9999.99,0.0003,2]
[424971673,1781362252000,-12500.0,0.0003,2]
[424971672,1781362252000,-25000.0,0.0003,2]
[424971669,1781362252000,-2500.0,0.0003,2]
[424971670,1781362252000,-22499.99,0.0003,2]
[424971663,1781362252000,-22500.0,0.0003,2]
[424971667,1781362252000,-12499.99,0.0003,2]
[424971675,1781362252000,-9784.98,0.0003,2]
[424971666,1781362252000,-22499.99,0.0003,2]
[424971664,1781362252000,-12500.0,0.0003,2]
[424971665,1781362252000,-2500.0,0.0003,2]
[424971662,1781362252000,-2500.0,0.0003,2]
[424971677,1781362252000,-22500.0,0.0003,2]
[424971676,1781362252000,-12499.99,0.0003,2]
[424971680,1781362252000,-359.26,0.0003,2]
[424971683,1781362252000,-2524.2,0.0003,2]
[424971681,1781362252000,-12499.99,0.0003,2]
[424971696,1781362252000,-131237.60789239,0.0003,2]
[424971695,1781362252000,-208.62,0.0003,2]
[424971694,1781362252000,-22500.0,0.0003,2]
[424971691,1781362252000,-406.82,0.0003,2]
[424971692,1781362252000,-351.81,0.0003,2]
[424971690,1781362252000,-22500.0,0.0003,2]
[424971689,1781362252000,-12500.0,0.0003,2]
[424971679,1781362252000,-200.0,0.0003,2]
[424971685,1781362252000,-12499.99,0.0003,2]
[424971678,1781362252000,-12500.0,0.0003,2]
[424971684,1781362252000,-2500.0,0.0003,2]
[424971682,1781362252000,-1226.1052,0.0003,120]
[424971686,1781362252000,-2082.81,0.0003,2]
[424971688,1781362252000,-9999.99,0.0003,2]
[424971693,1781362252000,-2499.99,0.0003,2]
[424971687,1781362252000,-22500.0,0.0003,2]
[424971697,1781362253000,-1263.57193613,0.0003,2]
[424971698,1781362253000,-271.1099532,0.0003,2]
[424971699,1781362253000,-964.64748612,0.0003,2]
[424971700,1781362253000,-640.0,0.00013699,2]
[424971701,1781362253000,-329.67840541,0.00013699,2]
[424971702,1781362253000,-368.01639536,0.00016437,2]
[424971719,1781362254000,-682.35,0.00027872,2]
[424971720,1781362254000,-6342.92,0.00027872,2]
[424971716,1781362254000,-1147.51,0.00027711,7]
[424971713,1781362254000,-1147.51,0.0002755,30]
[424971714,1781362254000,-6342.92,0.0002755,30]
[424971712,1781362254000,-682.35,0.0002755,30]
[424971715,1781362254000,-682.35,0.00027711,7]
[424971708,1781362254000,-363.1712,0.00024937,2]
[424971709,1781362254000,-150.0,0.00027397,2]
[424971710,1781362254000,-150.0,0.00027397,2]
[424971706,1781362254000,-531.0,0.000221,5]
[424971707,1781362254000,-1602.0,0.00024384,10]
[424971705,1781362254000,-150.0,0.000175,2]
[424971718,1781362254000,-467.34,0.00027855,7]
[424971704,1781362254000,-58.2567693,0.00016437,2]
[424971703,1781362254000,-63.20683534,0.00016437,2]
[424971711,1781362254000,-11166.94,0.00027397,10]
[424971717,1781362254000,-6342.92,0.00027711,7]
[424971726,1781362254000,-467.34,0.00028007,2]
[424971723,1781362254000,-467.34,0.00027916,2]
[424971739,1781362254000,-42252.3926367,0.0003,2]
[424971740,1781362254000,-58341.51940281,0.0003,2]
[424971738,1781362254000,-1147.51,0.00028516,30]
[424971733,1781362254000,-467.35,0.0002813,7]
[424971737,1781362254000,-1147.51,0.00028355,2]
[424971736,1781362254000,-1147.51,0.00028194,7]
[424971722,1781362254000,-467.34,0.00027885,30]
[424971735,1781362254000,-6342.92,0.00028194,7]
[424971734,1781362254000,-682.35,0.00028194,7]
[424971729,1781362254000,-1147.51,0.00028033,30]
[424971731,1781362254000,-467.34,0.00028068,30]
[424971730,1781362254000,-467.34,0.00028038,7]
[424971727,1781362254000,-682.35,0.00028033,30]
[424971728,1781362254000,-6342.92,0.00028033,30]
[424971724,1781362254000,-467.34,0.00027946,7]
[424971721,1781362254000,-1147.51,0.00027872,2]
[424971732,1781362254000,-467.34,0.00028099,2]
[424971725,1781362254000,-467.34,0.00027977,30]
[424971741,1781362255000,-3996.61856988,0.0003,2]
[424971742,1781362256000,-150.0,0.00027397,2]
[424971743,1781362256000,-679.10764207,0.0003,2]
[424971744,1781362274000,500.0,6.865e-05,2]
[424971745,1781362274000,500.0,6.865e-05,2]
[424971746,1781362274000,263.57193613,6.865e-05,2]
[424971748,1781362274000,20.79686723,6.865e-05,2]
[424971749,1781362274000,227.62581569,6.865e-05,2]
[424971747,1781362274000,215.63119664,6.865e-05,2]
[424971754,1781362405000,-500.0,6.864e-05,2]
[424971755,1781362502000,-278.64797027,6.864e-05,2]
[424971756,1781362534000,-160.0,6.864e-05,2]
[424971757,1781362579000,-216.029201,6.864e-05,2]
[424971758,1781362624000,-150.0,6.865e-05,2]
[424971763,1781362677000,-160.0,6.875e-05,2]
[424971765,1781362680000,227.67,7.921e-05,7]
[424971764,1781362680000,200.0,7.921e-05,7]
[424971766,1781362692000,-150.0,6.933e-05,2]
[424971768,1781362692000,-150.0,7.07e-05,2]
[424971767,1781362692000,-150.0,7.001e-05,2]
[424971770,1781362693000,-500.0,7.138e-05,2]
[424971772,1781362693000,-500.0,7.138e-05,2]
[424971771,1781362693000,-500.0,7.138e-05,2]
[424971773,1781362693000,-500.0,7.138e-05,2]
[424971774,1781362693000,-500.0,7.138e-05,2]
[424971776,1781362693000,-500.0,7.138e-05,2]
[424971775,1781362693000,-500.0,7.138e-05,2]
[424971777,1781362693000,-500.0,7.138e-05,2]
[424971779,1781362693000,-500.0,7.138e-05,2]
[424971769,1781362693000,-500.0,7.138e-05,2]
[424971780,1781362693000,-500.0,7.138e-05,2]
[424971787,1781362693000,-500.0,7.138e-05,2]
[424971786,1781362693000,-500.0,7.138e-05,2]
[424971785,1781362693000,-500.0,7.138e-05,2]
[424971788,1781362693000,-253.88243415,7.138e-05,2]
[424971783,1781362693000,-500.0,7.138e-05,2]
[424971782,1781362693000,-500.0,7.138e-05,2]
[424971778,1781362693000,-296.11756585,7.138e-05,2]
[424971784,1781362693000,-500.0,7.138e-05,2]
[424971781,1781362693000,-500.0,7.138e-05,2]
[424971795,1781362695000,-500.0,7.138e-05,2]
[424971789,1781362695000,-246.11756585,7.138e-05,2]
[424971790,1781362695000,-500.0,7.138e-05,2]
[424971791,1781362695000,-500.0,7.138e-05,2]
[424971792,1781362695000,-500.0,7.138e-05,2]
[424971794,1781362695000,-500.0,7.138e-05,2]
[424971793,1781362695000,-500.0,7.138e-05,2]
[424971796,1781362695000,-500.0,7.138e-05,2]
[424971797,1781362695000,-500.0,7.138e-05,2]
[424971801,1781362695000,-500.0,7.138e-05,2]
[424971800,1781362695000,-500.0,7.138e-05,2]
[424971799,1781362695000,-500.0,7.138e-05,2]
[424971802,1781362695000,-500.0,7.138e-05,2]
[424971804,1781362695000,-500.0,7.138e-05,2]
[424971803,1781362695000,-500.0,7.138e-05,2]
[424971805,1781362695000,-500.0,7.138e-05,2]
[424971807,1781362695000,-500.0,7.138e-05,2]
[424971806,1781362695000,-500.0,7.138e-05,2]
[424971798,1781362695000,-500.0,7.138e-05,2]
[424971809,1781362696000,-253.88243415,7.138e-05,2]
[424971808,1781362696000,-500.0,7.138e-05,2]
[424971813,1781362700000,-500.0,7.138e-05,2]
[424971812,1781362700000,-500.0,7.138e-05,2]
[424971810,1781362700000,-246.11756585,7.138e-05,2]
[424971811,1781362700000,-500.0,7.138e-05,2]
[424971814,1781362701000,-229.61175658,7.138e-05,2]
[424971815,1781362701000,-500.0,7.138e-05,2]
[424971816,1781362701000,-500.0,7.138e-05,2]
[424971817,1781362701000,-500.0,7.138e-05,2]
[424971818,1781362701000,-500.0,7.138e-05,2]
[424971819,1781362701000,-500.0,7.138e-05,2]
[424971821,1781362701000,-150.0,7.139e-05,2]
[424971823,1781362701000,-211.0,7.276e-05,2]
[424971824,1781362701000,-200.0,7.921e-05,2]
[424971822,1781362701000,-150.0,7.207e-05,2]
[424971825,1781362701000,-200.0,7.921e-05,2]
[424971820,1781362701000,-216.029201,7.138e-05,2]
[424971827,1781362709000,-500.0,8.219e-05,2]
[424971826,1781362709000,-500.0,8.219e-05,2]
[424971829,1781362709000,-583.55332617,8.219e-05,2]
[424971828,1781362709000,-500.0,8.219e-05,2]
[424971830,1781362713000,311.0,8.219e-05,2]
[424971831,1781362716000,-2002.6881504,9.04e-05,2]
[424971836,1781362733000,-8736.0,9.04e-05,2]
[424971835,1781362733000,-318.0,8.527e-05,2]
[424971832,1781362733000,-316.0,8.219e-05,2]
[424971834,1781362733000,-317.0,8.527e-05,2]
[424971833,1781362733000,-313.0,8.219e-05,2]
[424971837,1781362741000,-315.0,8.219e-05,2]
[424971839,1781362741000,-1502.0,9.04e-05,2]
[424971838,1781362741000,-318.0,8.527e-05,2]
[424971841,1781362879000,-321.0,8.217e-05,2]
[424971842,1781363048000,-319.0,8.024e-05,2]
[424971852,1781363130000,-313.0,8.023e-05,2]
[424971844,1781363130000,-320.0,8.023e-05,2]
[424971845,1781363130000,-320.0,8.023e-05,2]
[424971846,1781363130000,-321.0,8.023e-05,2]
[424971847,1781363130000,-309.0,8.023e-05,2]
[424971849,1781363130000,-316.0,8.023e-05,2]
[424971848,1781363130000,-316.0,8.023e-05,2]
[424971850,1781363130000,-320.0,8.023e-05,2]
[424971851,1781363130000,-313.0,8.023e-05,2]
[424971853,1781363130000,-317.0,8.023e-05,2]
[424971855,1781363130000,-199.5,8.023e-05,2]
[424971857,1781363130000,-500.0,8.023e-05,2]
[424971856,1781363130000,-500.0,8.023e-05,2]
[424971854,1781363130000,-311.0,8.023e-05,2]
[424971864,1781363130000,-314.0,8.024e-05,2]
[424971865,1781363130000,-310.0,8.024e-05,2]
[424971863,1781363130000,-221.64927183,8.023e-05,2]
[424971861,1781363130000,-600.20117614,8.023e-05,2]
[424971866,1781363130000,-315.0,8.024e-05,2]
[424971860,1781363130000,-172.96117566,8.023e-05,2]
[424971858,1781363130000,-500.0,8.023e-05,2]
[424971859,1781363130000,-500.0,8.023e-05,2]
[424971867,1781363130000,-317.0,8.024e-05,2]
[424971862,1781363130000,-209.55691668,8.023e-05,2]
[424971877,1781363131000,-316.0,8.024e-05,2]
[424971882,1781363131000,-310.0,8.024e-05,2]
[424971880,1781363131000,-318.0,8.024e-05,2]
[424971881,1781363131000,-310.0,8.024e-05,2]
[424971879,1781363131000,-320.0,8.024e-05,2]
[424971878,1781363131000,-315.0,8.024e-05,2]
[424971875,1781363131000,-320.0,8.024e-05,2]
[424971873,1781363131000,-318.0,8.024e-05,2]
[424971874,1781363131000,-309.0,8.024e-05,2]
[424971872,1781363131000,-313.0,8.024e-05,2]
[424971871,1781363131000,-318.0,8.024e-05,2]
[424971868,1781363131000,-314.0,8.024e-05,2]
[424971870,1781363131000,-321.0,8.024e-05,2]
[424971869,1781363131000,-320.0,8.024e-05,2]
[424971886,1781363131000,-317.0,8.024e-05,2]
[424971876,1781363131000,-317.0,8.024e-05,2]
[424971885,1781363131000,-311.0,8.024e-05,2]
[424971884,1781363131000,-320.0,8.024e-05,2]
[424971889,1781363131000,-313.0,8.025e-05,2]
[424971883,1781363131000,-315.0,8.024e-05,2]
[424971904,1781363131000,-314.0,8.217e-05,2]
[424971902,1781363131000,-314.0,8.217e-05,2]
[424971903,1781363131000,-316.0,8.217e-05,2]
[424971901,1781363131000,-314.0,8.217e-05,2]
[424971900,1781363131000,-11801.0165672,8.025e-05,2]
[424971898,1781363131000,-313.0,8.025e-05,2]
[424971897,1781363131000,-316.0,8.025e-05,2]
[424971899,1781363131000,-311.0,8.025e-05,2]
[424971894,1781363131000,-316.0,8.025e-05,2]
[424971895,1781363131000,-309.0,8.025e-05,2]
[424971893,1781363131000,-315.0,8.025e-05,2]
[424971891,1781363131000,-319.0,8.025e-05,2]
[424971892,1781363131000,-318.0,8.025e-05,2]
[424971890,1781363131000,-310.0,8.025e-05,2]
[424971888,1781363131000,-1257.79416935,8.024e-05,2]
[424971887,1781363131000,-311.0,8.024e-05,2]
[424971896,1781363131000,-313.0,8.025e-05,2]
[424971915,1781363132000,-319.0,8.218e-05,2]
[424971920,1781363132000,-311.0,8.218e-05,2]
[424971919,1781363132000,-312.0,8.218e-05,2]
[424971918,1781363132000,-312.0,8.218e-05,2]
[424971917,1781363132000,-315.0,8.218e-05,2]
[424971916,1781363132000,-312.0,8.218e-05,2]
[424971914,1781363132000,-311.0,8.218e-05,2]
[424971906,1781363132000,-316.0,8.217e-05,2]
[424971912,1781363132000,-313.0,8.217e-05,2]
[424971911,1781363132000,-310.0,8.217e-05,2]
[424971910,1781363132000,-317.0,8.217e-05,2]
[424971909,1781363132000,-313.0,8.217e-05,2]
[424971908,1781363132000,-311.0,8.217e-05,2]
[424971907,1781363132000,-314.0,8.217e-05,2]
[424971905,1781363132000,-309.0,8.217e-05,2]
[424971921,1781363132000,-314.0,8.218e-05,2]
[424971913,1781363132000,-310.0,8.218e-05,2]
[424971922,1781363132000,-321.0,8.218e-05,2]
[424971925,1781363132000,-319.0,8.218e-05,2]
[424971923,1781363132000,-315.0,8.218e-05,2]
[424971940,1781363132000,-300.0,8.825e-05,2]
[424971924,1781363132000,-311.0,8.218e-05,2]
[424971941,1781363132000,-300.0,8.825e-05,2]
[424971938,1781363132000,-500.0,8.769e-05,2]
[424971937,1781363132000,-62811.05720791,8.538e-05,2]
[424971936,1781363132000,-500.0,8.495e-05,2]
[424971935,1781363132000,-318.0,8.274e-05,2]
[424971934,1781363132000,-313.0,8.274e-05,2]
[424971939,1781363132000,-300.0,8.825e-05,2]
[424971931,1781363132000,-216.029201,8.225e-05,2]
[424971932,1781363132000,-160.0,8.227e-05,2]
[424971930,1781363132000,-500.0,8.221e-05,2]
[424971929,1781363132000,-458.48732832,8.219e-05,2]
[424971928,1781363132000,-500.0,8.219e-05,2]
[424971927,1781363132000,-500.0,8.219e-05,2]
[424971926,1781363132000,-311.0,8.219e-05,2]
[424971933,1781363132000,-315.0,8.274e-05,2]
[424971953,1781363133000,-150.99,8.996e-05,2]
[424971950,1781363133000,-9805.13,8.996e-05,2]
[424971952,1781363133000,-9999.99,8.996e-05,2]
[424971951,1781363133000,-543.56,8.996e-05,2]
[424971947,1781363133000,-300.0,8.825e-05,2]
[424971945,1781363133000,-500.0,8.825e-05,2]
[424971948,1781363133000,-811.47,8.836e-05,2]
[424971955,1781363133000,-18576.75,8.996e-05,2]
[424971943,1781363133000,-500.0,8.825e-05,2]
[424971944,1781363133000,-500.0,8.825e-05,2]
[424971942,1781363133000,-500.0,8.825e-05,2]
[424971949,1781363133000,-299.99,8.996e-05,2]
[424971956,1781363133000,-4850.45939334,9.04e-05,2]
[424971946,1781363133000,-500.0,8.825e-05,2]
[424971957,1781363133000,-385.18036478,9.043e-05,2]
[424971970,1781363133000,-2770.96725658,0.0001,2]
[424971969,1781363133000,-1158.2585461,0.0001,2]
[424971968,1781363133000,-36019.88,9.814e-05,2]
[424971966,1781363133000,-307.9,9.599e-05,2]
[424971967,1781363133000,-2000.0,9.675e-05,2]
[424971965,1781363133000,-307.9,9.598e-05,2]
[424971954,1781363133000,-24999.99,8.996e-05,2]
[424971961,1781363133000,-307.45,9.593e-05,2]
[424971959,1781363133000,-950.45982637,9.473e-05,2]
[424971960,1781363133000,-877.29818123,9.561e-05,2]
[424971964,1781363133000,-307.9,9.597e-05,2]
[424971962,1781363133000,-307.45,9.596e-05,2]
[424971963,1781363133000,-307.45,9.597e-05,2]
[424971958,1781363133000,-2000.0,9.43e-05,2]
[424971973,1781363134000,690.76701397,0.0001,2]
[424971971,1781363134000,313.0,8.023e-05,2]
[424971974,1781363134000,307.45,9.589e-05,2]
[424971975,1781363134000,307.45,9.893e-05,2]
[424971972,1781363134000,690.76701397,0.0001,2]
[424971976,1781363209000,-319.0,8.023e-05,2]
[424971979,1781363229000,-311.0,8.023e-05,2]
[424971980,1781363229000,-310.0,8.023e-05,2]
[424971978,1781363229000,-316.0,8.023e-05,2]
[424971977,1781363229000,-320.0,8.023e-05,2]
[424971981,1781363229000,-310.0,8.023e-05,2]
[424971982,1781363230000,-309.0,8.023e-05,2]
[424971984,1781363230000,-151.36907493,8.023e-05,2]
[424971983,1781363230000,-313.0,8.023e-05,2]
[424971985,1781363361000,-241.44013063,8.022e-05,2]
[424971992,1781363362000,-160.63092507,8.023e-05,2]
[424971993,1781363362000,-309.0,8.023e-05,2]
[424971991,1781363362000,-313.0,8.022e-05,2]
[424971990,1781363362000,-313.0,8.022e-05,2]
[424971989,1781363362000,-317.0,8.022e-05,2]
[424971988,1781363362000,-318.0,8.022e-05,2]
[424971987,1781363362000,-315.0,8.022e-05,2]
[424971986,1781363362000,-312.0,8.022e-05,2]
[424971994,1781363362000,-312.0,8.023e-05,2]
[424972002,1781363363000,-316.0,8.023e-05,2]
[424972001,1781363363000,-312.0,8.023e-05,2]
[424972000,1781363363000,-318.0,8.023e-05,2]
[424971999,1781363363000,-317.0,8.023e-05,2]
[424971996,1781363363000,-321.0,8.023e-05,2]
[424971998,1781363363000,-318.0,8.023e-05,2]
[424971995,1781363363000,-310.0,8.023e-05,2]
[424972003,1781363363000,-321.0,8.023e-05,2]
[424971997,1781363363000,-310.0,8.023e-05,2]
[424972004,1781363363000,-318.0,8.023e-05,2]
[424972010,1781363363000,-317.0,8.024e-05,2]
[424972005,1781363363000,-312.0,8.023e-05,2]
[424972008,1781363363000,-313.0,8.023e-05,2]
[424972007,1781363363000,-318.0,8.023e-05,2]
[424972011,1781363363000,-320.0,8.024e-05,2]
[424972009,1781363363000,-319.0,8.023e-05,2]
[424972012,1781363363000,-315.0,8.024e-05,2]
[424972013,1781363363000,-216.029201,8.025e-05,2]
[424972015,1781363363000,-312.0,8.025e-05,2]
[424972014,1781363363000,-312.0,8.025e-05,2]
[424972016,1781363363000,-68.42519607,8.025e-05,2]
[424972006,1781363363000,-314.0,8.023e-05,2]
[424972041,1781363432000,-314.0,8.095e-05,2]
[424972039,1781363432000,-313.0,8.036e-05,2]
[424972038,1781363432000,-309.0,8.036e-05,2]
[424972045,1781363432000,-500.0,8.219e-05,2]
[424972040,1781363432000,-155.15449028,8.094e-05,2]
[424972043,1781363432000,-925617.8285,8.117e-05,2]
[424972035,1781363432000,-321.0,8.028e-05,2]
[424972047,1781363432000,-500.0,8.338e-05,2]
[424972042,1781363432000,-316.0,8.095e-05,2]
[424972034,1781363432000,-317.0,8.028e-05,2]
[424972030,1781363432000,-245.57480393,8.025e-05,2]
[424972036,1781363432000,-311.0,8.028e-05,2]
[424972033,1781363432000,-310.0,8.026e-05,2]
[424972028,1781363432000,-315.0,8.025e-05,2]
[424972032,1781363432000,-317.0,8.026e-05,2]
[424972031,1781363432000,-313.0,8.026e-05,2]
[424972029,1781363432000,-318.0,8.025e-05,2]
[424972027,1781363432000,-319.0,8.025e-05,2]
[424972025,1781363432000,-315.0,8.025e-05,2]
[424972026,1781363432000,-315.0,8.025e-05,2]
[424972048,1781363432000,-500.0,8.338e-05,2]
[424972037,1781363432000,-313.0,8.028e-05,2]
[424972044,1781363432000,-520.94112983,8.219e-05,2]
[424972058,1781363432000,-300.0,8.42e-05,2]
[424972049,1781363432000,-563.0872287,8.338e-05,2]
[424972046,1781363432000,-500.0,8.338e-05,2]
[424972072,1781363432000,-5946.88611491,8.896e-05,2]
[424972071,1781363432000,-43759.23513893,8.896e-05,2]
[424972070,1781363432000,-300.0,8.825e-05,2]
[424972068,1781363432000,-300.0,8.825e-05,2]
[424972069,1781363432000,-500.0,8.825e-05,2]
[424972065,1781363432000,-4000.0,8.757e-05,2]
[424972067,1781363432000,-4000.0,8.825e-05,2]
[424972064,1781363432000,-4000.0,8.757e-05,2]
[424972066,1781363432000,-1162.20311221,8.757e-05,2]
[424972062,1781363432000,-213.8646043,8.684e-05,2]
[424972063,1781363432000,-4000.0,8.757e-05,2]
[424972059,1781363432000,-342.04670984,8.42e-05,2]
[424972060,1781363432000,-9999.99,8.42e-05,2]
[424972056,1781363432000,-300.0,8.42e-05,2]
[424972061,1781363432000,-150.99,8.42e-05,2]
[424972057,1781363432000,-300.0,8.42e-05,2]
[424972055,1781363432000,-319.0,8.398e-05,2]
[424972053,1781363432000,-330.95934294,8.338e-05,2]
[424972054,1781363432000,-320.0,8.398e-05,2]
[424972052,1781363432000,-300.0,8.338e-05,2]
[424972050,1781363432000,-300.0,8.338e-05,2]
[424972051,1781363432000,-300.0,8.338e-05,2]
[424972074,1781363433000,-1911.15902254,8.896e-05,2]
[424972073,1781363433000,-51136.49964581,8.896e-05,2]
[424972075,1781363433000,-29437.1845077,8.896e-05,2]
[424972077,1781363433000,-419.22850987,8.896e-05,2]
[424972076,1781363433000,-2507.99198305,8.896e-05,2]
[424972092,1781363438000,-271.1099532,8.896e-05,2]
[424972091,1781363438000,-3319.99999998,8.896e-05,2]
[424972088,1781363438000,-316.0,8.025e-05,2]
[424972090,1781363438000,-7711.83618967,8.896e-05,2]
[424972089,1781363438000,-1169.14663867,8.896e-05,2]
[424972126,1781363441000,-7.14808,8.025e-05,2]
[424972125,1781363441000,-305.85192,8.025e-05,2]
[424972127,1781363441000,-6389.87606925,8.896e-05,2]
[424972168,1781363445000,-254764.94512323,8.896e-05,2]
[424972167,1781363445000,-747594.62728901,8.896e-05,2]
[424972169,1781363446000,-394.87202445,8.896e-05,2]
[424972171,1781363446000,-241.89076398,8.896e-05,2]
[424972170,1781363446000,-312.0,8.359e-05,2]
[424972172,1781363446000,-18516.17535503,8.896e-05,2]
[424972173,1781363446000,-266126.27026782,8.896e-05,2]
[424972174,1781363446000,-1000.88383104,8.896e-05,2]
[424972175,1781363446000,-4354.38191505,8.896e-05,2]
[424972176,1781363446000,-1924.777,8.896e-05,2]
[424972178,1781363446000,-6222.006,8.896e-05,2]
[424972179,1781363446000,-1279.40585,8.896e-05,2]
[424972177,1781363446000,-2648.012256,8.896e-05,2]